bitfinex/quotes_ETHUSD_20250620
["timestamp","ask_amount","ask_price","bid_price","bid_amount"]
[1750406234351,0.22035207,2551.2,2551.1,3.91986636]
[1750406234764,0.22036103,2551.2,2551.1,3.91986636]
[1750406235360,0.22035631,2551.2,2551.1,3.91986636]
[1750406236101,0.2203458,2551.2,2551.1,3.91986636]
[1750406236385,0.2203458,2551.2,2551.0,0.0082]
[1750406236386,0.55,2551.1,2550.9,3.9201792]
[1750406236588,0.7703458,2551.0,2550.9,3.9283792]
[1750406236786,0.77036045,2551.0,2550.8,3.92024693]
[1750406236986,0.25953966,2550.9,2550.8,3.92844693]
[1750406237186,0.25954752,2550.9,2550.8,3.92844693]
[1750406238383,10.25954752,2550.9,2550.7,3.92047034]
[1750406238555,0.22036831,2550.8,2550.7,3.92047034]
[1750406239303,0.22041505,2550.8,2550.7,3.92049241]
[1750406239667,0.25959358,2550.8,2550.7,3.92049241]
[1750406240301,0.25959358,2550.8,2550.7,3.92869241]
[1750406241058,0.25959358,2550.8,2550.7,3.92049241]
[1750406241404,0.25955589,2550.8,2550.7,3.92049241]
[1750406242070,0.25955589,2550.8,2550.6,3.92057051]
[1750406242257,10.22037668,2550.7,2550.4,3.92093234]
[1750406242457,0.25955589,2550.6,2550.5,3.92079984]
[1750406242703,0.25960664,2550.6,2550.5,3.92899984]
[1750406243002,0.03917921,2550.6,2550.5,3.92899984]
[1750406243296,0.25945942,2550.6,2550.5,3.92899984]
[1750406243706,0.2594586,2550.6,2550.5,3.92899984]
[1750406244056,0.25945853,2550.6,2550.5,0.0082]
[1750406244504,0.25945853,2550.6,2550.5,3.92899984]
[1750406244687,0.03917921,2550.6,2550.5,3.92899984]
[1750406245016,0.80945853,2550.7,2550.5,3.92899984]
[1750406245204,0.22027932,2550.6,2550.5,0.0082]
[1750406245408,0.22027932,2550.6,2550.5,3.92899984]
[1750406245697,0.22027932,2550.6,2550.5,0.0082]
[1750406245901,0.22027932,2550.6,2550.4,0.0607]
[1750406246059,0.25945853,2550.5,2550.2,3.92119706]
[1750406246278,0.22027932,2550.4,2550.2,3.98189706]
[1750406246674,0.22027932,2550.4,2550.2,0.0607]
[1750406246908,0.22010732,2550.4,2550.2,3.9819332]
[1750406247199,0.22010732,2550.4,2550.1,0.0607]
[1750406247200,10.22010732,2550.4,2550.1,0.0607]
[1750406247401,0.2592899,2550.3,2550.1,3.98210927]
[1750406247720,0.25922745,2550.3,2550.1,3.98210927]
[1750406248412,0.25922745,2550.3,2550.1,0.0607]
[1750406248982,0.25922745,2550.3,2550.0,0.0607]
[1750406249363,0.25922745,2550.3,2550.0,3.98217737]
[1750406249679,0.22004824,2550.3,2550.2,3.98196107]
[1750406249875,0.25922745,2550.4,2550.3,3.92110732]
[1750406250197,0.25922745,2550.4,2550.3,3.98180732]
[1750406252512,0.22004824,2550.4,2550.3,3.98180732]
[1750406252932,10.25922745,2550.6,2550.5,3.92079984]
[1750406253132,10.22004824,2550.6,2550.4,3.98157662]
[1750406253276,0.62434266,2550.5,2550.4,3.98157662]
[1750406254714,0.62434266,2550.5,2550.4,0.0607]
[1750406255095,0.03917921,2550.5,2550.4,0.0607]
[1750406255848,0.03917921,2550.5,2550.2,11.07925707]
[1750406256125,17.390377,2550.5,2550.2,0.0607]
[1750406256293,0.58516345,2550.4,2550.2,3.98194736]
[1750406256479,0.03917921,2550.3,2550.2,3.98194736]
[1750406256880,0.22004824,2550.4,2550.3,3.98180732]
[1750406257127,0.25922745,2550.5,2550.3,3.92110732]
[1750406257286,0.03917921,2550.5,2550.4,0.0607]
[1750406258192,0.25908706,2550.6,2550.4,0.0607]
[1750406258716,0.03917921,2550.6,2550.4,0.0607]
[1750406259125,0.21995275,2550.5,2550.4,0.0607]
[1750406259484,0.21995531,2550.5,2550.4,0.0607]
[1750406260052,0.03917921,2550.6,2550.4,0.0607]
[1750406260183,0.21995253,2550.5,2550.4,0.0607]
[1750406260619,0.21996497,2550.5,2550.4,0.0607]
[1750406261210,0.21996478,2550.5,2550.4,0.0607]
[1750406261487,0.21996419,2550.5,2550.4,0.0607]
[1750406261717,0.21996419,2550.5,2550.1,3.9213236]
[1750406261886,0.2591434,2550.4,2550.2,3.92116649]
[1750406262212,0.2591434,2550.4,2550.2,0.0607]
[1750406262419,0.25921479,2550.4,2550.2,3.98195483]
[1750406262721,0.25921479,2550.4,2550.3,0.0607]
[1750406264400,0.25922502,2550.4,2550.3,0.0607]
[1750406265724,0.03917921,2550.4,2550.3,0.0607]
[1750406265913,0.25931274,2550.4,2550.3,0.0607]
[1750406266703,0.2594537,2550.4,2550.3,0.0607]
[1750406266907,0.25945232,2550.4,2550.3,0.0607]
[1750406267093,0.03917921,2550.4,2550.3,0.0607]
[1750406267307,0.25945232,2550.4,2550.3,0.0607]
[1750406268031,0.25945243,2550.4,2550.3,0.0607]
[1750406268638,0.03917921,2550.4,2550.3,0.0607]
[1750406268844,0.25946016,2550.4,2550.3,3.98180732]
[1750406269039,0.25946016,2550.4,2550.3,4.78890732]
[1750406269197,0.62659026,2550.4,2550.3,4.78890732]
[1750406269702,0.40631112,2550.4,2550.3,4.78890732]
[1750406269910,0.62669557,2550.4,2550.3,3.98180732]
[1750406270242,0.62687158,2550.4,2550.3,3.98180732]
[1750406270729,0.62688259,2550.4,2550.3,3.98180732]
[1750406270930,0.62688948,2550.4,2550.3,3.98180732]
[1750406271540,0.62688961,2550.4,2550.3,3.98180732]
[1750406271839,0.62688961,2550.4,2550.3,0.0607]
[1750406272038,0.62688961,2550.4,2550.3,3.98180732]
[1750406273022,0.62695326,2550.4,2550.3,3.98180732]
[1750406273528,0.62699232,2550.4,2550.3,3.98180732]
[1750406273733,0.62699379,2550.4,2550.3,3.98180732]
[1750406273949,0.58781458,2550.4,2550.3,6.39300394]
[1750406274126,0.58781458,2550.4,2550.3,6.35379231]
[1750406274127,0.58778738,2550.4,2550.3,6.35379231]
[1750406274308,0.03917921,2550.8,2550.6,3.92050437]
[1750406274513,0.3674012,2550.7,2550.6,3.97820437]
[1750406274707,0.58784025,2550.7,2550.6,0.0577]
[1750406274907,0.5878493,2550.7,2550.5,3.97849724]
[1750406275105,0.03917921,2550.8,2550.5,3.92079724]
[1750406275304,0.58786264,2550.7,2550.4,11.04687224]
[1750406275506,0.58786264,2550.7,2550.3,3.97871531]
[1750406275507,0.62704185,2550.6,2550.3,3.97871531]
[1750406275714,10.0,2550.4,2550.3,3.97880732]
[1750406275897,10.58786414,2550.4,2550.3,3.97880732]
[1750406277303,10.58807974,2550.4,2550.3,3.97880732]
[1750406277784,0.58808218,2550.4,2550.3,3.97880732]
[1750406278252,0.58808387,2550.4,2550.3,3.97880732]
[1750406278558,0.58808374,2550.4,2550.3,0.0577]
[1750406278695,0.58808374,2550.4,2550.2,3.92114561]
[1750406279065,6.80521355,2550.5,2550.2,3.97884561]
[1750406279066,0.58808187,2550.3,2550.2,3.97884561]
[1750406279349,0.58808107,2550.3,2550.2,3.97884561]
[1750406279703,0.58810696,2550.3,2550.2,3.97884561]
[1750406280047,6.80521355,2550.5,2550.3,3.92105486]
[1750406280252,0.58812376,2550.4,2550.3,3.92105486]
[1750406280391,0.58812376,2550.4,2550.3,3.97875486]
[1750406280902,0.58812376,2550.4,2550.3,0.0577]
[1750406280903,0.58812336,2550.4,2550.3,0.0577]
[1750406281134,0.36757738,2550.4,2550.3,0.0577]
[1750406281336,7.35415946,2550.4,2549.9,0.0577]
[1750406281542,16.76603434,2550.2,2550.1,3.97910699]
[1750406281703,17.35415946,2550.2,2550.1,3.97910699]
[1750406282101,17.35417634,2550.2,2550.1,3.97910699]
[1750406282300,10.588142,2550.2,2550.1,3.97910699]
[1750406282501,10.0,2550.2,2550.1,3.97910699]
[1750406282702,10.58814737,2550.2,2550.1,3.97910699]
[1750406283154,10.58814745,2550.2,2550.1,3.97910699]
[1750406284667,10.58815026,2550.2,2550.1,3.97910699]
[1750406285358,10.58812341,2550.2,2550.1,3.97910699]
[1750406285522,10.58810906,2550.2,2550.1,3.97910699]
[1750406286248,10.58810653,2550.2,2550.1,3.97910699]
[1750406286989,10.58809558,2550.2,2550.1,3.97910699]
[1750406287650,10.22054177,2550.2,2550.1,3.97910699]
[1750406288319,10.22052392,2550.2,2550.1,3.97910699]
[1750406289167,10.22052393,2550.2,2550.1,3.97910699]
[1750406290923,10.22051901,2550.2,2550.1,3.97910699]
[1750406291124,10.22051902,2550.2,2550.1,3.97910699]
[1750406292221,10.22051888,2550.2,2550.1,3.97910699]
[1750406293763,10.22051486,2550.2,2550.1,3.97910699]
[1750406293965,10.0,2550.2,2550.1,3.97910699]
[1750406294164,10.22051541,2550.2,2550.1,3.97910699]
[1750406295271,10.0,2550.2,2550.1,3.97910699]
[1750406295439,10.22051826,2550.2,2550.1,3.97910699]
[1750406295639,10.2205177,2550.2,2550.1,3.97910699]
[1750406296838,10.2205194,2550.2,2550.1,3.97910699]
[1750406298173,10.0,2550.2,2550.1,3.97910699]
[1750406298389,10.22051916,2550.2,2550.1,3.97910699]
[1750406299862,10.22052015,2550.2,2550.1,3.97910699]
[1750406300343,10.22052035,2550.2,2550.1,3.97910699]
[1750406301567,10.22051122,2550.2,2550.1,3.97910699]
[1750406302784,10.22051134,2550.2,2550.1,3.97910699]
[1750406303278,10.22051294,2550.2,2550.1,3.97910699]
[1750406303784,10.22051325,2550.2,2550.1,3.97910699]
[1750406304280,10.22056631,2550.2,2550.1,3.97910699]
[1750406304982,10.22057365,2550.2,2550.1,3.97910699]
[1750406305477,10.0,2550.2,2550.1,3.97910699]
[1750406305684,10.22057378,2550.2,2550.1,3.97910699]
[1750406308357,10.22061354,2550.2,2550.1,3.97910699]
[1750406308552,10.22061341,2550.2,2550.1,12.62297375]
[1750406308988,0.22061341,2550.2,2550.1,20.20400809]
[1750406309155,7.065,2551.3,2550.9,3.92006828]
[1750406309351,7.065,2551.3,2551.0,3.92000786]
[1750406309352,0.3672635,2551.2,2551.0,3.92000786]
[1750406309555,0.3672635,2551.2,2551.1,3.91987769]
[1750406309556,0.03917921,2551.2,2551.1,3.91987769]
[1750406309777,0.03917921,2551.2,2551.0,3.91997772]
[1750406309977,10.03917921,2551.2,2551.0,3.91997772]
[1750406310185,0.03917921,2551.1,2551.0,3.91997772]
[1750406310366,0.03917921,2551.2,2551.1,3.91982543]
[1750406310582,0.03917921,2551.2,2551.0,0.0599]
[1750406310768,0.03917921,2551.3,2551.0,3.97987144]
[1750406310972,0.03917921,2551.3,2551.1,3.91985129]
[1750406311172,0.03917921,2551.3,2551.0,0.0599]
[1750406311173,0.03917921,2551.3,2551.0,3.97985012]
[1750406311360,0.03917921,2551.3,2551.1,3.91983982]
[1750406311718,0.03917921,2551.3,2551.2,3.91972405]
[1750406311998,0.03917921,2551.6,2551.5,3.91926317]
[1750406312360,0.0929556,2551.8,2551.5,3.91926317]
[1750406312361,10.13213481,2551.8,2551.6,3.91906647]
[1750406312558,10.0929556,2551.8,2551.6,3.91906647]
[1750406312772,0.03917921,2551.7,2551.5,3.91920186]
[1750406313065,0.03917921,2551.7,2551.4,3.91934381]
[1750406313263,10.0,2551.6,2551.4,3.91934381]
[1750406313661,10.0,2551.4,2550.9,0.8155]
[1750406314001,10.0,2551.4,2551.0,3.91987817]
[1750406314002,10.0,2551.2,2551.0,3.91987817]
[1750406314770,10.0,2551.0,2550.7,10.97538818]
[1750406314997,10.0,2551.0,2550.3,3.92110732]
[1750406314998,10.0,2550.8,2550.3,3.92110732]
[1750406315163,10.0,2550.6,2550.5,3.92072796]
[1750406315478,10.0,2550.6,2550.5,3.98062796]
[1750406318794,10.0,2550.6,2550.3,3.92100376]
[1750406319106,0.03917921,2550.5,2550.4,3.62095357]
[1750406319605,0.03917921,2550.5,2550.3,3.92102257]
[1750406319907,10.0,2550.4,2550.1,3.92133128]
[1750406320205,7.61401355,2550.5,2550.1,3.92133128]
[1750406320206,10.0,2550.2,2550.1,3.92133128]
[1750406321176,10.21987833,2550.2,2550.1,3.92133128]
[1750406322100,10.21987833,2550.2,2549.9,3.92164688]
[1750406322301,0.03917921,2550.1,2550.0,3.92156862]
[1750406322500,0.25905592,2550.1,2549.9,3.92165763]
[1750406322714,10.0,2550.0,2549.9,3.92165763]
[1750406323214,0.55,2549.9,2549.5,0.751]
[1750406323367,10.0,2549.6,2549.5,3.92227431]
[1750406323571,10.0,2549.6,2549.5,3.92233771]
[1750406323896,10.0,2549.6,2549.1,0.751]
[1750406324065,10.0,2549.4,2548.7,0.751]
[1750406324407,10.0,2549.4,2549.3,3.92264543]
[1750406324896,10.0,2549.4,2549.3,3.98334543]
[1750406326993,10.0,2549.4,2549.3,3.92264543]
[1750406327407,10.0,2549.4,2549.3,3.98334543]
[1750406327721,10.0,2549.8,2549.6,3.92218387]
[1750406327872,17.29372187,2549.7,2549.6,3.92218387]
[1750406328119,10.21954266,2549.7,2549.6,3.92218387]
[1750406328428,10.58543488,2549.7,2549.6,3.92218387]
[1750406328629,10.36589673,2549.7,2549.6,3.92218387]
[1750406329718,10.36563202,2549.7,2549.6,3.98288387]
[1750406330433,10.36563202,2549.7,2549.6,3.92218387]
[1750406331258,10.365633,2549.7,2549.6,3.92218387]
[1750406331659,10.0,2549.7,2549.6,3.92218387]
[1750406334479,0.55,2550.2,2549.6,1.60685216]
[1750406334647,0.03917921,2550.1,2549.9,3.92163051]
[1750406334845,0.40457132,2550.1,2549.9,3.92163051]
[1750406335176,10.95457132,2550.1,2549.9,3.92159766]
[1750406335343,10.55,2550.1,2549.9,3.92159766]
[1750406335874,10.94893741,2550.1,2549.9,3.92159766]
[1750406336443,0.03917921,2550.0,2549.9,3.92159766]
[1750406336692,10.94893741,2550.1,2550.0,3.92156862]
[1750406337377,10.39893741,2550.1,2550.0,3.92156862]
[1750406337966,10.39893741,2550.1,2549.9,3.92164593]
[1750406338139,10.39893741,2550.1,2550.0,3.92156862]
[1750406338345,10.0,2550.1,2550.0,3.92156862]
[1750406339584,17.13119105,2550.1,2549.9,3.92169868]
[1750406339745,0.03917921,2550.0,2549.9,3.92169868]
[1750406340360,0.03917921,2550.0,2549.8,3.92179533]
[1750406340683,0.03917921,2550.0,2549.8,3.92178453]
[1750406340891,0.03917921,2550.0,2549.8,3.92174248]
[1750406341047,0.03917921,2550.0,2549.9,3.92172242]
[1750406343794,0.40471169,2550.0,2549.8,3.92178511]
[1750406343957,16.76603434,2549.9,2549.8,3.92178511]
[1750406344462,10.7965,2549.8,2549.1,4.74874778]
[1750406344661,16.76603434,2549.6,2549.5,3.92233314]
[1750406344877,16.76603434,2549.6,2549.4,3.92241616]
[1750406344878,17.13216058,2549.6,2549.4,3.92241616]
[1750406345078,16.76603434,2549.6,2549.4,3.92241616]
[1750406345287,10.0,2549.6,2549.4,3.92234644]
[1750406345459,10.0,2549.6,2549.5,3.98223771]
[1750406345661,0.3661507,2549.6,2549.5,3.92233771]
[1750406345845,10.0,2549.6,2549.5,3.92233771]
[1750406346053,10.36615779,2549.6,2549.5,3.92233771]
[1750406346487,10.58602778,2549.6,2549.5,3.92233771]
[1750406346653,10.58602778,2549.6,2549.3,0.0599]
[1750406346857,0.36615779,2549.5,2549.4,3.92249156]
[1750406347201,10.0,2549.6,2549.5,3.92233771]
[1750406347376,10.58635971,2549.6,2549.5,3.92233771]
[1750406347698,10.58635381,2549.6,2549.5,3.92233771]
[1750406348199,10.58635381,2549.6,2549.5,3.98223771]
[1750406348394,0.58635381,2549.6,2549.5,3.98223771]
[1750406348579,10.7965,2549.8,2549.5,3.98223771]
[1750406348580,0.76987896,2549.7,2549.6,3.92218387]
[1750406348789,1.13721043,2549.7,2549.4,3.92243321]
[1750406349000,10.7965,2549.8,2549.5,3.92233771]
[1750406349001,0.36700652,2549.6,2549.5,3.92233771]
[1750406349311,0.58721241,2549.7,2549.6,3.92218387]
[1750406349461,0.58723512,2549.7,2549.6,3.92218387]
[1750406350107,0.58723333,2549.7,2549.6,3.98208387]
[1750406350266,10.0,2549.8,2549.7,3.92203004]
[1750406350467,10.58724067,2549.8,2549.7,3.92203004]
[1750406351105,10.58724097,2549.8,2549.6,3.98202852]
[1750406351288,0.58724097,2549.7,2549.6,3.98202852]
[1750406353035,0.58748176,2549.7,2549.6,3.98202852]
[1750406353187,10.0,2549.8,2549.7,3.92203004]
[1750406353393,10.58762417,2549.8,2549.7,3.92203004]
[1750406353700,10.36726511,2549.8,2549.7,3.92203004]
[1750406353907,10.58765915,2549.8,2549.6,0.0599]
[1750406354108,0.58765915,2549.7,2549.6,3.98208387]
[1750406354541,0.58765915,2549.7,2549.6,0.0599]
[1750406354822,10.0,2549.6,2549.5,3.92225775]
[1750406354975,10.58765915,2549.6,2549.4,3.92240073]
[1750406355175,0.40646618,2549.5,2549.3,3.92251316]
[1750406355376,0.36728697,2549.4,2549.3,3.92251316]
[1750406356392,10.36728697,2549.4,2549.3,3.92251316]
[1750406356588,10.58767656,2549.4,2549.2,3.92272434]
[1750406356791,0.62689249,2549.3,2549.2,3.9227993]
[1750406357111,0.62687755,2549.3,2549.2,3.9227993]
[1750406357478,0.62687741,2549.3,2549.2,3.9227993]
[1750406357794,0.5876982,2549.3,2549.2,3.9227993]
[1750406358035,0.5876982,2549.3,2549.1,10.9088757]
[1750406358315,0.3673208,2549.2,2549.1,3.9228757]
[1750406358497,10.3673208,2549.2,2549.0,4.92304419]
[1750406358699,17.17253435,2549.1,2549.0,1.0]
[1750406358883,22.59588811,2549.1,2549.0,1.0]
[1750406359237,22.59573449,2549.1,2549.0,1.0]
[1750406359381,22.37550833,2549.1,2549.0,1.0]
[1750406359576,18.67251512,2549.1,2549.0,1.0]
[1750406360133,10.58727873,2549.1,2549.0,1.0]
[1750406360424,10.58727239,2549.1,2549.0,1.0]
[1750406360994,10.58727239,2549.1,2549.0,4.9231071]
[1750406361393,10.58726764,2549.1,2549.0,4.9231071]
[1750406361604,10.58706564,2549.1,2549.0,1.0]
[1750406361833,10.58706564,2549.1,2549.0,4.9231071]
[1750406362041,10.58706564,2549.1,2549.0,4.9806071]
[1750406362329,10.58690735,2549.1,2549.0,4.9806071]
[1750406362481,10.58683917,2549.1,2549.0,4.9806071]
[1750406362904,10.58683405,2549.1,2549.0,4.9806071]
[1750406363077,10.22006469,2549.1,2549.0,4.9806071]
[1750406363292,10.58668749,2549.1,2549.0,4.9806071]
[1750406363641,10.58668819,2549.1,2549.0,4.9806071]
[1750406364496,10.58663942,2549.1,2549.0,4.9806071]
[1750406364691,10.58661038,2549.1,2549.0,4.9806071]
[1750406365091,10.36663163,2549.1,2549.0,4.9806071]
[1750406365319,0.36661535,2549.1,2549.0,4.9244071]
[1750406365544,0.8102,2549.7,2549.3,3.923822]
[1750406365545,0.62572394,2549.6,2549.3,3.923822]
[1750406365821,0.36659046,2549.5,2549.3,3.923822]
[1750406365988,0.36659046,2549.4,2549.3,3.923822]
[1750406366317,0.36659003,2549.4,2549.3,3.923822]
[1750406367319,10.8102,2549.7,2549.4,3.92236995]
[1750406367488,0.62579295,2549.6,2549.4,3.92366995]
[1750406367688,0.36663359,2549.5,2549.4,3.92236995]
[1750406368110,0.36670386,2549.5,2549.4,3.92236995]
[1750406368419,10.36670386,2549.5,2549.2,11.66816807]
[1750406368619,0.58672889,2549.4,2549.3,3.92262138]
[1750406369192,0.58674122,2549.4,2549.3,3.92262138]
[1750406369599,0.58673968,2549.4,2549.2,6.9693]
[1750406369909,0.36671465,2549.3,2549.2,10.8920902]
[1750406370104,0.36671465,2549.3,2549.1,3.9228537]
[1750406370313,0.36671465,2549.2,2549.1,3.9803537]
[1750406370529,0.36671465,2549.2,2549.1,0.0575]
[1750406370729,0.36671465,2549.2,2549.1,10.94445319]
[1750406371103,10.0,2549.3,2549.2,3.9227993]
[1750406371304,10.58694819,2549.3,2549.2,3.9227993]
[1750406371638,10.58694715,2549.3,2549.2,10.8867993]
[1750406371814,10.58694715,2549.3,2549.2,10.9442993]
[1750406372217,10.58694771,2549.3,2549.2,10.8867993]
[1750406372416,10.58694988,2549.3,2549.2,10.8867993]
[1750406372638,10.5869509,2549.3,2549.1,3.9228859]
[1750406372840,10.0,2549.1,2549.0,1.8127]
[1750406373066,0.36685845,2549.1,2549.0,12.69568716]
[1750406373336,0.25929602,2549.3,2549.1,3.92294311]
[1750406373506,0.3668601,2549.2,2549.1,3.92294311]
[1750406374137,0.3668601,2549.2,2549.1,3.98044311]
[1750406374812,0.36701369,2549.2,2549.1,3.98044311]
[1750406375427,0.22020883,2549.4,2549.2,3.92266819]
[1750406375631,0.03917921,2549.5,2549.2,3.92266819]
[1750406375632,0.58725338,2549.3,2549.2,10.88266819]
[1750406375832,0.36704455,2549.3,2549.2,10.88266819]
[1750406376028,0.58725338,2549.3,2549.2,10.88266819]
[1750406376204,0.36704381,2549.3,2549.2,6.96]
[1750406376553,0.36704381,2549.3,2549.2,10.8827993]
[1750406376754,0.55,2549.5,2549.3,3.92263462]
[1750406376977,0.58727041,2549.4,2549.3,3.92263462]
[1750406377176,0.58727041,2549.4,2549.3,3.92563462]
[1750406377378,0.58725351,2549.4,2549.3,10.87863462]
[1750406377529,0.36703808,2549.4,2549.3,10.87863462]
[1750406377729,0.58725351,2549.4,2549.3,10.87863462]
[1750406378074,0.22021543,2549.5,2549.4,3.92249156]
[1750406378248,0.36702528,2549.5,2549.4,3.92549156]
[1750406378457,0.03917921,2549.8,2549.4,3.92249156]
[1750406378660,0.58723577,2549.7,2549.6,3.92218387]
[1750406379170,0.58724077,2549.7,2549.6,3.92518387]
[1750406379531,0.58727017,2549.7,2549.6,3.92518387]
[1750406379732,0.58732809,2549.7,2549.6,3.92518387]
[1750406380579,0.58732809,2549.7,2549.6,0.003]
[1750406380865,0.58733199,2549.7,2549.6,3.92518387]
[1750406381064,0.58733199,2549.7,2549.6,4.69508387]
[1750406381231,0.58733199,2549.7,2549.6,3.97968387]
[1750406381435,0.754,2551.3,2550.7,3.92049241]
[1750406381634,6.76603434,2551.2,2550.8,10.86726273]
[1750406381833,0.0583,2551.1,2550.9,3.92018459]
[1750406382268,10.0,2551.1,2550.9,3.92018459]
[1750406382566,10.0,2551.1,2550.9,3.92013427]
[1750406382768,1.15288521,2551.3,2550.9,3.92013427]
[1750406383148,11.15288521,2551.3,2550.9,10.86413427]
[1750406383550,10.754,2551.3,2550.9,10.86413427]
[1750406383750,0.754,2551.3,2550.9,10.86411358]
[1750406384374,0.754,2551.3,2551.0,3.92003054]
[1750406384579,10.754,2551.3,2551.0,3.92003054]
[1750406384893,10.754,2551.3,2551.0,3.91999979]
[1750406385055,11.1460684,2551.3,2551.0,3.91999979]
[1750406385873,11.1460684,2551.3,2550.9,10.86410073]
[1750406386687,11.1460684,2551.3,2551.0,3.92001258]
[1750406386993,1.1460684,2551.3,2551.0,3.92001258]
[1750406387365,1.1460684,2551.3,2550.9,10.85709991]
[1750406387687,1.1460684,2551.3,2550.9,10.91459991]
[1750406387890,1.1460684,2551.3,2551.0,3.92000393]
[1750406388596,1.1460684,2551.3,2551.0,3.91988229]
[1750406388752,0.55,2551.4,2551.1,3.91975735]
[1750406389597,7.31603434,2551.4,2551.0,0.0575]
[1750406389890,7.37433434,2551.4,2551.1,6.933]
[1750406390267,7.37433434,2551.4,2551.1,10.85187696]
[1750406390467,7.31603434,2551.4,2551.1,10.85187696]
[1750406391073,0.55,2551.4,2551.1,10.85187696]
[1750406391394,0.55,2551.4,2551.2,3.91970925]
[1750406391688,0.55,2551.4,2551.1,10.90809587]
[1750406392260,0.55,2551.4,2551.1,6.9883]
[1750406392497,0.55,2551.4,2551.1,3.97617316]
[1750406392651,0.55,2551.4,2551.1,10.84887316]
[1750406392859,0.55,2551.4,2551.2,3.91972405]
[1750406393281,0.55,2551.4,2551.1,10.84682152]
[1750406393494,0.91437842,2551.4,2551.1,10.84682152]
[1750406393689,0.91437842,2551.4,2551.1,10.90312152]
[1750406394080,0.91437842,2551.4,2551.1,6.927]
[1750406394392,6.76603434,2551.3,2551.1,10.8468626]
[1750406394700,10.0,2551.2,2551.1,6.924]
[1750406395055,10.0,2551.2,2550.9,3.92010046]
[1750406395295,10.0,2551.2,2551.0,6.923]
[1750406395496,10.0,2551.2,2550.9,3.92010046]
[1750406395693,10.0,2551.0,2550.9,10.84310046]
[1750406396552,10.0,2551.2,2551.0,3.91997828]
[1750406396758,11.3592,2551.5,2551.4,3.91941679]
[1750406396958,11.72339716,2551.5,2551.4,3.91941679]
[1750406397158,10.55,2551.5,2551.4,3.91941679]
[1750406397961,1.22441221,2551.7,2551.4,3.91941679]
[1750406398157,10.36414925,2551.6,2551.4,3.91941679]
[1750406398396,10.36414925,2551.6,2551.5,3.91926317]
[1750406398397,10.0,2551.6,2551.5,3.91926317]
[1750406398557,10.36414574,2551.6,2551.3,10.83849217]
[1750406398758,10.0,2551.6,2551.3,3.91949217]
[1750406398995,10.0,2551.6,2551.3,10.83749217]
[1750406399195,0.55,2551.6,2551.4,3.91939916]
[1750406399402,0.36414769,2551.6,2551.5,3.91926317]
[1750406399605,10.39231221,2551.7,2551.6,3.91910957]
[1750406399804,0.0929556,2551.8,2551.7,3.97525599]
[1750406400211,0.0929556,2551.8,2551.7,0.0563]
[1750406400511,0.0929556,2551.8,2551.7,3.97525599]
[1750406400804,0.0929556,2551.8,2551.7,5.53245054]
[1750406403065,0.0929556,2551.8,2551.7,6.83245054]
[1750406403813,0.0929556,2551.8,2551.7,13.74445054]
[1750406405381,0.0929556,2551.8,2551.7,14.52315054]
[1750406406290,0.0929556,2551.8,2551.7,7.61115054]
[1750406406613,0.0929556,2551.8,2551.7,23.28136889]
[1750406406819,0.0929556,2551.8,2551.7,23.24218488]
[1750406406987,0.0929556,2551.8,2551.7,16.47615054]
[1750406407194,0.0929556,2551.8,2551.7,16.47515054]
[1750406407598,0.0929556,2551.8,2551.7,7.61115054]
[1750406407875,0.0929556,2551.8,2551.7,1.3]
[1750406408075,15.44855801,2551.8,2551.7,1.3]
[1750406408270,22.79737619,2551.8,2551.7,0.52023407]
[1750406408470,0.8868,2551.2,2550.9,6.903]
[1750406408724,10.36474655,2551.1,2550.9,10.82312586]
[1750406409019,10.0,2551.1,2550.9,10.82312586]
[1750406409238,9.82399,2551.1,2551.0,3.92003136]
[1750406409510,9.82399,2551.1,2550.9,6.903]
[1750406409511,10.18889754,2551.1,2550.9,10.82310516]
[1750406409716,9.82399,2551.1,2551.0,3.92003136]
[1750406409871,10.40836785,2551.1,2550.9,10.82309132]
[1750406410075,0.58438037,2551.0,2550.9,10.82309132]
[1750406410307,0.36490471,2551.0,2550.9,10.82309132]
[1750406410509,0.7638,2551.4,2551.0,3.91998599]
[1750406410714,7.90127477,2551.3,2551.1,6.899]
[1750406410935,0.58524043,2551.2,2551.1,6.899]
[1750406411084,0.58524043,2551.2,2551.0,3.91998599]
[1750406411285,0.7766,2551.1,2550.4,0.0563]
[1750406411486,1.13525562,2551.0,2550.5,6.898]
[1750406411720,0.58525562,2550.9,2550.7,3.92037002]
[1750406412016,0.55,2550.7,2550.2,3.97750326]
[1750406412229,0.36583774,2550.6,2550.4,3.92087884]
[1750406412429,0.3658564,2550.5,2550.1,4.67178372]
[1750406412579,0.3658564,2550.6,2550.4,3.92095357]
[1750406412778,0.21951176,2550.7,2550.6,3.92061504]
[1750406412779,0.55,2550.7,2550.6,3.92061504]
[1750406412975,0.21951176,2550.9,2550.7,3.92049241]
[1750406413180,0.7766,2551.1,2550.8,3.92033274]
[1750406413181,0.76951176,2551.0,2550.8,3.92033274]
[1750406413413,0.76951176,2551.0,2550.8,3.92027198]
[1750406413602,0.76951176,2551.0,2550.7,3.92042716]
[1750406413802,0.36577916,2550.9,2550.8,3.92025775]
[1750406413988,0.58529092,2550.9,2550.7,3.92041307]
[1750406414192,0.36577916,2550.8,2550.7,3.92041307]
[1750406414599,0.36576757,2550.8,2550.7,3.92041307]
[1750406414795,0.21951176,2550.9,2550.7,3.92041307]
[1750406415129,1.19253713,2551.1,2550.8,3.92032797]
[1750406415294,0.58513889,2551.0,2550.9,6.895]
[1750406415832,0.91321851,2551.0,2550.9,6.895]
[1750406416131,0.32808429,2551.0,2550.9,10.87148503]
[1750406416900,0.91323592,2551.0,2550.9,10.87148503]
[1750406417198,0.69377849,2551.0,2550.9,10.87148503]
[1750406417430,0.69384192,2551.0,2550.9,10.87148503]
[1750406417744,0.32808429,2551.0,2550.9,10.87148503]
[1750406418031,0.32808429,2551.0,2550.9,11.5009639]
[1750406418230,0.32808429,2551.0,2550.9,12.2564639]
[1750406418538,0.32808429,2551.0,2550.9,14.2174639]
[1750406419401,0.58523884,2551.3,2551.0,3.9199506]
[1750406419730,0.36577418,2551.2,2551.1,3.91975472]
[1750406419933,0.36577418,2551.4,2551.1,6.89]
[1750406420239,0.55,2551.4,2551.1,3.91987469]
[1750406420418,0.36579101,2551.3,2551.2,6.889]
[1750406420739,0.58525567,2551.3,2551.2,6.889]
[1750406420903,0.58512521,2551.3,2551.2,6.889]
[1750406421107,0.58512521,2551.3,2551.1,3.91987469]
[1750406421327,10.7686,2551.1,2550.8,6.887]
[1750406421517,0.58518513,2551.0,2550.8,6.887]
[1750406421705,0.58518513,2551.0,2550.7,3.92048509]
[1750406421706,0.36570325,2550.9,2550.7,3.92048509]